bitfinex-derivatives/quotes_SOLF0:USTF0_20220104
["timestamp","ask_amount","ask_price","bid_price","bid_amount"]
[1641311152441,7.0,171.88,171.86,38.24679]
[1641311154144,7.0,171.88,171.86,41.24679]
[1641311155043,7.0,171.88,171.87,3.0]
[1641311155345,7.0,171.88,171.86,34.66479]
[1641311156345,7.0,171.88,171.87,3.0]
[1641311156546,7.0,171.88,171.86,34.66479]
[1641311158346,7.0,171.88,171.87,3.0]
[1641311158648,12.33951608,171.91,171.87,3.0]
[1641311158849,12.33951608,171.91,171.9,7.0]
[1641311159649,12.33951608,171.93,171.9,7.0]
[1641311160449,12.33951608,171.93,171.92,27.66479]
[1641311160649,12.33951608,171.93,171.92,33.66579]
[1641311161149,11.71951608,171.93,171.92,33.66579]
[1641311161448,11.71951608,171.96,171.92,33.66579]
[1641311161652,11.71951608,171.96,171.93,4.0]
[1641311161850,11.71951608,171.96,171.92,27.66479]
[1641311162050,18.47151608,171.96,171.92,27.66479]
[1641311162450,18.47151608,171.96,171.92,55.32958]
[1641311162751,6.752,171.96,171.92,55.32958]
[1641311163153,43.23174415,171.98,171.92,55.32958]
[1641311164451,70.89653415,171.98,171.88,50.3297618]
[1641311164653,32.91947701,171.97,171.88,50.3297618]
[1641311164853,35.91947701,171.97,171.88,50.3297618]
[1641311165252,32.91947701,171.97,171.88,50.3297618]
[1641311165454,32.91947701,171.94,171.88,50.3297618]
[1641311165653,39.50847701,171.94,171.88,50.3297618]
[1641311166454,6.589,171.94,171.88,50.3297618]
[1641311166955,9.589,171.94,171.88,50.3297618]
[1641311167257,19.90126714,171.94,171.88,50.3297618]
[1641311167657,3.0,171.93,171.88,50.3297618]
[1641311167857,13.31226714,171.94,171.83,31.66479]
[1641311168059,32.91947701,171.93,171.83,31.66479]
[1641311168559,10.31226714,171.93,171.83,31.66479]
[1641311170763,10.31226714,171.93,171.86,4.0]
[1641311172165,10.31226714,171.93,171.86,7.0]
[1641311172568,10.31226714,171.93,171.9,27.66479]
[1641311173268,32.91947701,171.96,171.9,27.66479]
[1641311176572,43.23174415,171.97,171.9,27.66479]
[1641311178675,43.23174415,171.97,171.9,33.42279]
[1641311179577,43.23174415,171.97,171.95,4.0]
[1641311179778,43.23174415,171.97,171.95,5.659]
[1641311179979,10.31226714,171.97,171.95,5.659]
[1641311180778,32.91947701,171.98,171.91,4.0]
[1641311181482,32.91947701,171.99,171.91,4.0]
[1641311182282,43.23174415,172.0,171.91,4.0]
[1641311182482,43.23174415,172.0,171.9,27.66479]
[1641311182883,43.23174415,172.0,171.91,4.0]
[1641311182884,32.91947701,171.99,171.91,4.0]
[1641311185686,46.06693258,172.0,171.91,4.0]
[1641311185886,46.06693258,172.0,171.91,3.0]
[1641311186087,46.06693258,172.0,171.95,4.0]
[1641311187089,13.14745557,172.0,171.98,4.0]
[1641311187288,13.14745557,172.0,171.98,8.12]
[1641311187890,13.14745557,172.01,171.98,8.12]
[1641311188688,13.14745557,172.01,172.0,27.66479]
[1641311189091,2.83518843,172.03,172.0,27.66479]
[1641311189489,32.91947701,172.04,172.02,4.0]
[1641311189490,21.75466544,172.04,172.02,4.0]
[1641311189689,46.9094,172.08,172.02,4.0]
[1641311189890,10.31226714,172.07,172.02,4.0]
[1641311190089,10.31226714,172.07,172.0,27.66479]
[1641311190792,24.86937737,172.07,172.0,27.66479]
[1641311191192,24.86937737,172.07,172.02,4.0]
[1641311192193,10.31226714,172.07,172.02,4.0]
[1641311192793,10.31226714,172.07,172.03,27.66479]
[1641311194194,10.31226714,172.07,172.03,21.08946533]
[1641311194994,10.31226714,172.07,172.05,4.0]
[1641311195397,24.9804919,172.11,172.05,4.0]
[1641311196800,24.9804919,172.11,172.07,27.66479]
[1641311198503,24.9804919,172.11,172.09,4.0]
[1641311199803,24.9804919,172.11,172.07,27.66479]
[1641311200002,24.9804919,172.13,172.07,27.66479]
[1641311201504,24.9804919,172.13,172.12,4.0]
[1641311201703,24.9804919,172.13,172.12,4.177]
[1641311202103,10.31226714,172.13,172.12,4.177]
[1641311202905,10.31226714,172.13,172.12,8.177]
[1641311203105,10.31226714,172.13,172.12,4.177]
[1641311203306,10.31226714,172.15,172.12,4.0]
[1641311203506,10.31226714,172.15,172.1,27.66479]
[1641311204106,10.31226714,172.17,172.1,27.66479]
[1641311205407,27.66479,172.18,172.1,27.66479]
[1641311205606,4.05085774,172.16,172.1,27.66479]
[1641311206407,27.66479,172.18,172.1,27.66479]
[1641311206408,4.05085774,172.17,172.1,27.66479]
[1641311206907,4.05085774,172.16,172.1,27.66479]
[1641311208507,4.05085774,172.16,172.07,27.66479]
[1641311208718,7.33793671,172.15,172.07,27.66479]
[1641311208909,3.0,172.13,172.07,27.66479]
[1641311209110,50.7075,172.14,172.07,27.66479]
[1641311209409,81.37229,172.14,172.07,27.66479]
[1641311209609,7.05085774,172.13,172.05,8.58]
[1641311209909,4.05085774,172.13,172.05,8.58]
[1641311210712,7.05085774,172.13,172.05,8.58]
[1641311210909,3.0,172.11,172.05,8.58]
[1641311211110,7.05085774,172.13,172.05,8.58]
[1641311211314,3.0,172.1,172.05,8.58]
[1641311212113,12.15232068,172.06,172.05,8.58]
[1641311214715,12.15232068,172.07,172.05,8.58]
[1641311214915,12.15232068,172.07,172.06,4.0]
[1641311215517,12.15232068,172.08,172.06,4.0]
[1641311216017,12.15232068,172.08,172.07,3.0]
[1641311216918,12.15232068,172.1,172.07,3.0]
[1641311217217,12.15232068,172.1,172.09,4.0]
[1641311217919,0.31232068,172.1,172.09,7.0]
[1641311218119,2.068e-05,172.1,172.09,7.0]
[1641311218320,10.03870477,172.13,172.09,7.0]
[1641311218520,10.03870477,172.13,172.12,4.0]
[1641311219121,10.03870477,172.16,172.12,4.0]
[1641311220722,10.03870477,172.19,172.12,8.10939163]
[1641311222025,42.45211143,172.19,172.12,4.0]
[1641311224528,32.41340666,172.18,172.12,4.0]
[1641311224725,38.27440666,172.18,172.12,4.0]
[1641311225426,32.41340666,172.17,172.12,4.0]
[1641311226529,38.27440666,172.18,172.12,4.0]
[1641311227128,5.861,172.18,172.12,4.0]
[1641311228431,5.861,172.18,172.12,12.6]
[1641311229836,42.45211143,172.19,172.12,12.6]
[1641311230036,2.62564131,172.17,172.12,12.6]
[1641311230235,8.41064131,172.17,172.12,12.6]
[1641311230739,2.62564131,172.16,172.12,12.6]
[1641311231938,2.62564131,172.16,172.15,4.0]
[1641311232938,2.62564131,172.19,172.15,4.0]
[1641311235241,2.62564131,172.19,172.12,12.6]
[1641311235541,8.32964131,172.19,172.12,16.70939163]
[1641311236140,8.32964131,172.19,172.12,8.10939163]
[1641311236339,3.0,172.17,172.12,8.10939163]
[1641311236544,3.0,172.17,172.12,4.10939163]
[1641311236742,3.0,172.17,172.11,54.43915343]
[1641311237143,3.0,172.17,172.11,4.10939163]
[1641311237541,2.62564131,172.16,172.1,8.9]
[1641311237942,3.0,172.14,172.09,4.10939163]
[1641311238142,3.0,172.13,172.09,4.10939163]
[1641311238543,5.194,172.14,172.09,4.10939163]
[1641311238743,2.62564131,172.13,172.07,31.77418163]
[1641311239144,5.62564131,172.13,172.07,27.66479]
[1641311239348,2.62564131,172.13,172.07,27.66479]
[1641311239945,8.62764131,172.13,172.07,27.66479]
[1641311240446,2.62564131,172.12,172.07,27.66479]
[1641311241351,2.62564131,172.12,172.08,4.0]
[1641311241749,2.62564131,172.12,172.11,4.0]
[1641311241948,2.62564131,172.12,172.07,31.77418163]
[1641311242346,4.10675562,172.09,172.08,4.10939163]
[1641311242547,5.562e-05,172.09,172.08,4.10939163]
[1641311243148,2.62564131,172.14,172.08,1.51873111]
[1641311245350,2.62564131,172.14,172.09,4.0]
[1641311245951,2.62564131,172.14,172.1,27.66479]
[1641311248656,12.32024945,172.13,172.1,27.66479]
[1641311249857,12.32024945,172.12,172.1,27.66479]
[1641311251259,17.22924945,172.12,172.06,4.0]
[1641311251464,17.22924945,172.12,172.05,58.9097618]
[1641311251958,12.32024945,172.1,172.05,58.9097618]
[1641311252760,12.32024945,172.09,172.05,58.9097618]
[1641311253359,12.32024945,172.08,172.05,58.9097618]
[1641311253860,10.64024945,172.08,172.05,58.9097618]
[1641311254063,2.62564131,172.07,172.05,58.9097618]
[1641311254262,2.62564131,172.07,172.05,8.58]
[1641311254663,2.62564131,172.1,172.05,8.58]
[1641311255563,2.62564131,172.1,172.06,4.0]
[1641311255764,2.62564131,172.1,172.05,8.58]
[1641311255965,12.22867647,172.1,172.05,8.58]
[1641311257967,12.22867647,172.1,172.06,4.0]
[1641311258767,2.62564131,172.1,172.06,4.0]
[1641311258968,2.62564131,172.1,172.06,5.53363414]
[1641311259367,2.62564131,172.1,172.06,4.0]
[1641311260067,51.3559,172.11,172.06,4.0]
[1641311261170,2.5735711,172.1,172.05,8.58]
[1641311261368,2.5735711,172.1,172.07,1.53369601]
[1641311261968,51.3559,172.11,172.06,5.53369601]
[1641311262870,2.57355772,172.1,172.07,1.53369601]
[1641311263073,9.83455772,172.1,172.07,1.53369601]
[1641311263673,9.83455772,172.1,172.05,8.58]
[1641311263674,2.57413849,172.09,172.05,8.58]
[1641311264872,2.57413849,172.1,172.06,5.53366149]
[1641311265372,2.57413849,172.1,172.06,1.53366149]
[1641311265771,2.57413849,172.1,172.05,8.58]
[1641311266570,12.17646052,172.1,172.05,8.58]
[1641311267771,2.57413849,172.1,172.06,4.0]
[1641311268872,2.57413849,172.1,172.05,8.58]
[1641311269974,2.57413849,172.1,172.06,1.53366063]
[1641311270675,5.57413849,172.1,172.06,1.53366063]
[1641311270874,5.57413849,172.1,172.05,8.58]
[1641311270875,15.17679186,172.1,172.05,8.58]
[1641311271286,12.17679186,172.1,172.05,8.58]
[1641311271475,2.57413849,172.09,172.05,8.58]
[1641311271877,7.19413849,172.09,172.01,77.9945518]
[1641311272078,3.0,172.08,172.01,50.3297618]
[1641311272277,27.66479,172.08,172.01,50.3297618]
[1641311272579,30.66479,172.08,172.01,50.3297618]
[1641311272782,27.66479,172.08,172.01,50.3297618]
[1641311274081,2.57413849,172.07,172.02,1.53354924]
[1641311274683,2.57422327,172.08,172.02,1.53354924]
[1641311275482,12.17731388,172.1,172.02,1.53354924]
[1641311278386,27.66479,172.08,172.02,1.53354924]
[1641311279287,2.57417811,172.07,172.01,1.53354924]
[1641311279988,2.57417811,172.07,172.03,4.0]
[1641311280188,27.66479,172.08,172.03,4.0]
[1641311280488,51.3559,172.11,172.03,4.0]
[1641311281291,12.1774334,172.1,172.04,1.53354924]
[1641311282192,3.0,172.08,172.04,1.53354924]
[1641311282392,30.66479,172.08,172.04,1.53354924]
[1641311283095,2.57424088,172.07,172.01,1.53354924]
[1641311283496,3.0,172.07,172.01,1.53354924]
[1641311283894,2.57476096,172.06,172.01,1.53354924]
[1641311284296,2.57476096,172.06,172.02,4.0]
[1641311284496,2.57476096,172.06,172.02,37.45279]
[1641311286101,2.56427766,172.1,172.03,1.53354924]
[1641311286499,30.22906766,172.1,172.03,1.53354924]
[1641311287700,3.0,172.09,172.03,1.53354924]
[1641311287905,3.0,172.07,172.03,1.53354924]
[1641311288098,3.0,172.08,172.03,1.53354924]
[1641311288299,27.66479,172.1,172.03,1.53354924]
[1641311288500,3.0,172.08,172.03,1.53354924]
[1641311288701,27.66479,172.1,172.01,1.53354924]
[1641311289100,30.66479,172.1,172.01,1.53354924]
[1641311289701,2.56465222,172.09,172.02,4.0]
[1641311290302,12.32477596,172.08,172.03,1.53354924]
[1641311291406,12.16807287,172.09,172.03,1.53354924]
[1641311292006,14.88761729,172.09,172.03,1.53354924]
[1641311292206,14.88761729,172.09,172.03,7.27654924]
[1641311292408,14.88761729,172.09,172.05,4.0]
[1641311293209,12.32287292,172.1,172.05,4.0]
[1641311294410,12.32287292,172.1,172.06,1.53354924]
[1641311294411,2.57310465,172.1,172.06,1.53354924]
[1641311295109,12.32287292,172.13,172.06,1.53354924]
[1641311295309,12.32287292,172.12,172.06,1.53354924]
[1641311296511,2.57325338,172.13,172.06,1.53354924]
[1641311296710,14.89359903,172.13,172.06,1.53354924]
[1641311297509,79.41079,172.14,172.06,1.53354924]
[1641311297709,3.0,172.12,172.06,1.53354924]
[1641311298111,3.0,172.13,172.06,1.53354924]
[1641311298911,3.0,172.13,172.04,6.82808581]
[1641311298912,12.32252479,172.1,172.04,1.53354924]
[1641311299510,2.57386049,172.11,172.05,4.0]
[1641311299710,14.89608244,172.11,172.05,4.0]
[1641311300310,14.89608244,172.11,172.06,1.53354924]
[1641311300311,12.32222195,172.11,172.06,1.53354924]
[1641311301212,15.32222195,172.11,172.06,1.53354924]
[1641311302013,2.57386049,172.1,172.03,20.68635815]
[1641311302214,14.89608244,172.1,172.03,1.53354924]
[1641311302615,14.89608244,172.1,172.06,4.10733768]
[1641311304518,2.57386049,172.1,172.07,4.10733768]
[1641311305218,14.89588128,172.11,172.06,4.10733768]
[1641311305418,12.32222195,172.1,172.06,4.10733768]
[1641311306118,2.57365933,172.11,172.07,4.10733768]
[1641311306318,14.89513926,172.11,172.07,4.10733768]
[1641311306920,9.60196681,172.13,172.07,4.10733768]
[1641311307118,12.32072395,172.12,172.08,4.10733768]
[1641311307521,5.57314015,172.12,172.09,4.10733768]
[1641311307722,3.0,172.11,172.09,4.10733768]
[1641311308121,2.57314015,172.12,172.09,4.10733768]
[1641311308323,14.89416676,172.1,172.06,4.10733768]
[1641311309528,5.57372097,172.12,172.05,4.10733768]
[1641311309728,2.57372097,172.12,172.05,4.10733768]
[1641311309927,5.57372097,172.12,172.05,4.10733768]
[1641311310128,3.0,172.12,172.04,4.10733768]
[1641311310427,3.0,172.13,172.04,4.10733768]
[1641311311327,91.73123579,172.14,172.04,4.10733768]
[1641311311531,3.0,172.1,172.04,4.10733768]
[1641311311727,3.0,172.1,172.05,4.10733768]
[1641311311927,3.0,172.07,172.05,4.10733768]
[1641311312128,3.0,172.08,172.04,4.10733768]
[1641311312730,3.0,172.06,172.04,4.10733768]
[1641311312931,3.0,172.08,172.04,4.10733768]
[1641311313329,3.0,172.08,172.02,5.64088692]
[1641311313530,3.0,172.07,172.02,5.64088692]
[1641311313728,27.66479,172.09,172.02,5.64088692]
[1641311313729,3.0,172.08,172.02,5.64088692]
[1641311314330,2.57414343,172.07,172.04,4.10733768]
[1641311315030,3.0,172.08,172.04,4.10733768]
[1641311315230,3.0,172.07,172.04,4.10733768]
[1641311315430,3.0,172.08,172.04,4.10733768]
[1641311315630,30.66479,172.09,172.04,4.10733768]
[1641311316331,2.57420318,172.07,172.04,4.10733768]
[1641311317030,5.57408451,172.08,172.05,4.10733768]
[1641311317230,2.57408451,172.08,172.05,4.10733768]
[1641311317835,42.98817152,172.09,172.05,4.10733768]
[1641311318035,3.0,172.08,172.05,4.10733768]
[1641311318237,5.57407331,172.08,172.05,4.10733768]
[1641311318837,3.0,172.08,172.05,4.10733768]
[1641311319137,2.57407221,172.07,172.05,4.10733768]
[1641311319638,3.0,172.08,172.05,4.10733768]
[1641311320739,2.57414002,172.07,172.05,4.10733768]
[1641311321440,42.98801555,172.09,172.05,4.10733768]
[1641311321641,39.98801555,172.09,172.05,4.10733768]
[1641311322543,2.57411515,172.08,172.05,4.10733768]
[1641311323140,39.98801555,172.09,172.05,4.10733768]
[1641311323341,12.32322555,172.09,172.05,4.10733768]
[1641311323740,12.32322555,172.09,172.02,6.30654924]
[1641311323741,12.32322555,172.08,172.04,4.10733768]
[1641311324542,12.32209678,172.1,172.06,4.10733768]
[1641311324941,27.66479,172.11,172.06,4.10733768]
[1641311325342,12.17510442,172.13,172.06,8.31633768]
[1641311325945,2.57368928,172.13,172.06,8.31633768]
[1641311326143,14.89581489,172.1,172.06,8.31633768]
[1641311326744,12.32089404,172.12,172.08,4.10733768]
[1641311327645,12.32089404,172.12,172.08,8.10733768]
[1641311327845,12.17307314,172.13,172.08,8.10733768]
[1641311328043,12.17307314,172.13,172.12,4.0]
[1641311328245,12.17307314,172.13,172.12,8.558]
[1641311328443,4.43307314,172.13,172.12,4.558]
[1641311328646,12.31762696,172.17,172.12,6.09154924]
[1641311329745,82.07879,172.2,172.12,6.09154924]
[1641311330149,14.81854785,172.19,172.15,4.1055448]
[1641311333652,12.31663441,172.16,172.12,5.63909404]
[1641311334252,2.50191344,172.19,172.12,5.63909404]
[1641311334452,2.50191344,172.19,172.12,12.13409404]
[1641311335852,2.50191344,172.19,172.14,4.1055448]
[1641311336053,12.31684458,172.18,172.14,4.1055448]
[1641311337655,2.50191344,172.19,172.14,4.1055448]
[1641311338556,12.31724824,172.18,172.14,4.1055448]
[1641311340960,14.81916168,172.19,172.15,4.1055448]
[1641311341159,14.81916168,172.19,172.15,9.1415448]
[1641311341567,54.414,172.2,172.17,4.1055448]
[1641311341760,12.31503918,172.21,172.17,4.1055448]
[1641311342361,2.50139401,172.19,172.17,4.1055448]
[1641311343264,12.31503918,172.21,172.17,4.1055448]
[1641311345664,12.31503918,172.21,172.17,10.8995448]
[1641311348064,12.31503918,172.2,172.17,6.794]
[1641311348865,11.9112279,172.22,172.17,6.794]
[1641311349668,12.31749105,172.2,172.17,6.794]
[1641311350269,11.9112279,172.22,172.17,6.794]
[1641311350470,11.9112279,172.22,172.17,8.62]
[1641311350869,12.31752947,172.2,172.17,8.62]
[1641311351671,2.50136199,172.22,172.17,8.62]
[1641311351870,12.31767149,172.22,172.2,4.0]
[1641311352075,32.41340666,172.26,172.21,3.0]
[1641311352269,32.41340666,172.26,172.24,4.0]
[1641311352671,27.61340666,172.33,172.24,4.0]
[1641311353672,27.66479,172.34,172.24,4.0]
[1641311353875,36.59608797,172.34,172.27,4.1036972]
[1641311354675,8.93129797,172.33,172.28,4.1036972]
[1641311355275,27.66479,172.34,172.28,4.1036972]
[1641311355476,27.66479,172.34,172.29,4.1036972]
[1641311357278,4.10304294,172.3,172.29,4.1036972]
[1641311358180,27.66479,172.34,172.29,4.1036972]
[1641311358380,27.66479,172.34,172.29,10.7976972]
[1641311358983,27.66479,172.34,172.3,4.1036972]
[1641311360082,27.66479,172.34,172.31,4.1036972]
[1641311363988,27.66479,172.34,172.31,9.2456972]
[1641311364989,27.66479,172.34,172.31,4.1036972]
[1641311365189,27.66479,172.33,172.27,50.3297618]
[1641311365388,30.66479,172.33,172.27,33.0626618]
[1641311365589,27.66479,172.33,172.27,33.0626618]
[1641311365791,3.0,172.32,172.24,8.54]
[1641311365989,3.0,172.31,172.24,8.54]
[1641311366989,3.0,172.3,172.24,8.54]
[1641311367189,30.66479,172.3,172.24,8.54]
[1641311367791,27.66479,172.3,172.24,8.54]
[1641311372704,30.66479,172.3,172.24,8.54]
[1641311373506,27.66479,172.3,172.24,8.54]
[1641311374307,27.66479,172.3,172.24,12.817]
[1641311375509,21.09860492,172.3,172.24,12.817]
[1641311377014,30.21850614,172.3,172.24,12.817]
[1641311377212,9.11990122,172.3,172.24,12.817]
[1641311377612,12.11990122,172.32,172.24,12.817]
[1641311378512,9.11990122,172.32,172.24,12.817]
[1641311379413,9.11990122,172.32,172.25,27.66479]
[1641311380216,9.11990122,172.32,172.24,8.54]
[1641311380916,12.11990122,172.32,172.24,8.54]
[1641311381118,9.11990122,172.32,172.24,8.54]
[1641311381516,3.0,172.31,172.24,8.54]
[1641311382522,3.0,172.3,172.21,7.45282781]
[1641311382721,12.31258963,172.29,172.21,19.76541744]
[1641311383221,63.94298963,172.29,172.23,4.0]
[1641311383422,32.83182202,172.31,172.27,27.66479]
[1641311383622,32.83182202,172.31,172.27,32.15279]
[1641311384225,9.11990122,172.34,172.27,32.15279]
[1641311386626,12.11990122,172.34,172.27,32.15279]
[1641311387328,9.11990122,172.34,172.27,32.15279]
[1641311387527,9.11990122,172.34,172.27,27.66479]
[1641311389330,12.11990122,172.34,172.27,27.66479]
[1641311389932,3.0,172.33,172.27,27.66479]
[1641311390132,3.0,172.33,172.27,34.66479]
[1641311390533,9.11990122,172.34,172.27,34.66479]
[1641311391432,3.0,172.33,172.27,34.66479]
[1641311391631,3.0,172.33,172.27,7.0]
[1641311392231,41.95172324,172.34,172.27,7.0]
[1641311392634,2.39386306,172.32,172.27,7.0]
[1641311393431,27.66479,172.31,172.27,7.0]
[1641311394234,2.39386306,172.3,172.27,7.0]
[1641311396136,11.50853531,172.34,172.27,7.0]
[1641311396836,44.34035733,172.34,172.27,7.0]
[1641311397737,47.34035733,172.34,172.27,7.0]
[1641311399037,12.3057801,172.3,172.27,7.0]
[1641311399237,15.3057801,172.3,172.27,7.0]
[1641311399439,3.0,172.29,172.23,8.64]
[1641311399838,12.3057801,172.28,172.23,8.64]
[1641311401842,12.3057801,172.28,172.24,1.70900121]
[1641311402642,14.69964316,172.29,172.24,1.70900121]
[1641311403241,2.39386306,172.29,172.23,1.70900121]
[1641311408445,2.39386306,172.29,172.23,5.89100121]
[1641311409346,2.39386306,172.29,172.24,1.70900121]
[1641311412348,2.39386306,172.29,172.23,1.70900121]
[1641311413352,2.39386306,172.29,172.24,4.0]
[1641311413551,2.39386306,172.29,172.24,8.909]
[1641311414352,2.39386306,172.29,172.25,1.70900121]
[1641311415355,2.39386306,172.29,172.27,4.0]
[1641311415957,2.39386306,172.34,172.28,1.70900121]
[1641311416157,2.39386306,172.34,172.28,6.13700121]
[1641311416759,2.39386306,172.34,172.29,1.70900121]
[1641311417358,14.69964316,172.34,172.29,1.70900121]
[1641311418960,2.39386306,172.34,172.29,1.70900121]
[1641311421064,12.3057801,172.33,172.29,1.70900121]
[1641311422464,2.39386306,172.34,172.28,4.428]
[1641311422664,2.39386306,172.34,172.27,4.0]
[1641311424364,12.3057801,172.33,172.28,1.71000546]
[1641311425968,4.10281753,172.29,172.28,1.71000546]
[1641311427870,4.10281753,172.32,172.28,14.02259509]
[1641311428070,4.10281753,172.32,172.28,18.95559509]
[1641311429070,4.10281753,172.31,172.28,18.95559509]
[1641311429270,4.10281753,172.31,172.29,1.71000546]
[1641311431974,4.10281753,172.31,172.3,4.0]
[1641311432376,4.10281753,172.31,172.3,1.71000546]
[1641311432882,4.10281753,172.32,172.29,1.71000546]
[1641311434380,4.10281753,172.32,172.3,4.0]
[1641311436180,4.10281753,172.32,172.31,1.71000546]
[1641311437082,53.4474,172.36,172.31,1.71000546]
[1641311437684,4.10210215,172.32,172.31,1.71000546]
[1641311438485,4.1018643,172.34,172.31,1.71000546]
[1641311438984,2.39156887,172.35,172.31,1.71000546]
[1641311439686,4.10178829,172.34,172.31,1.71000546]
[1641311439886,4.10178829,172.34,172.31,29.37479546]
[1641311440386,2.39158236,172.35,172.33,4.0]
[1641311441186,12.30536488,172.38,172.33,4.0]
[1641311441386,55.0024,172.39,172.33,4.0]
[1641311441585,55.0024,172.39,172.33,8.719]
[1641311442086,55.0024,172.39,172.36,4.0]
[1641311442287,4.07593584,172.4,172.36,4.0]
[1641311444389,4.07593584,172.4,172.33,63.7067]
[1641311444589,4.07593584,172.4,172.33,8.719]
[1641311445192,4.07593584,172.4,172.37,4.0]
[1641311445391,4.07593584,172.4,172.37,8.669]
[1641311446191,4.07593584,172.41,172.37,8.669]
[1641311446393,4.07593584,172.41,172.37,4.669]
[1641311446791,4.07593584,172.4,172.37,4.669]
[1641311447191,4.07593584,172.4,172.32,4.07593584]
[1641311447393,4.07593584,172.4,172.31,63.40551584]
[1641311447992,4.07593584,172.4,172.31,66.40551584]
[1641311448391,4.07593584,172.4,172.34,4.0]
[1641311449392,4.07593584,172.4,172.34,9.947]
[1641311449994,4.07593584,172.4,172.34,37.61179]
[1641311450493,57.5615,172.42,172.34,37.61179]
[1641311450494,4.07593584,172.41,172.34,37.61179]
[1641311451494,61.63743584,172.42,172.34,37.61179]
[1641311452694,14.75497008,172.41,172.37,4.07593584]
[1641311453296,12.30536488,172.4,172.37,4.07593584]
[1641311454797,14.75497008,172.41,172.37,4.07593584]
[1641311455398,12.30536488,172.4,172.36,4.07593584]
[1641311458201,11.71671597,172.41,172.34,4.07593584]
[1641311458202,12.30536488,172.38,172.34,4.07593584]
[1641311458800,12.30536488,172.38,172.32,1.65137638]
[1641311458801,12.30536488,172.39,172.35,4.07593584]
[1641311462302,12.30536488,172.38,172.34,4.07593584]
[1641311463103,14.75497008,172.38,172.34,4.07593584]
[1641311463702,12.30536488,172.38,172.34,4.07593584]
[1641311465806,14.75497008,172.39,172.35,4.07593584]
[1641311466407,14.75497008,172.39,172.36,4.0]
[1641311466607,14.75497008,172.39,172.37,27.66479]
[1641311466809,14.75497008,172.39,172.37,32.55879]
[1641311467409,14.75497008,172.41,172.37,36.63472584]
[1641311468012,14.75497008,172.41,172.37,8.96993584]
[1641311469613,12.30536488,172.4,172.37,4.894]
[1641311470315,12.30536488,172.4,172.36,4.07593584]
[1641311473519,12.30536488,172.4,172.36,8.07593584]
[1641311473718,12.30536488,172.4,172.39,4.0]
[1641311474318,56.92763854,172.44,172.38,4.07593584]
[1641311474520,56.92763854,172.44,172.4,27.66479]
[1641311474919,56.92763854,172.44,172.37,93.87132584]
[1641311476525,3.0,172.43,172.34,53.85525143]
[1641311476723,55.32958,172.38,172.34,45.37525143]
[1641311477126,55.32958,172.38,172.34,37.0626618]
[1641311477324,27.66479,172.38,172.34,37.0626618]
[1641311478526,27.66479,172.38,172.35,1.60766713]
[1641311479527,24.84479,172.38,172.35,1.60766713]
[1641311479727,27.66479,172.42,172.35,1.60766713]
[1641311480626,30.66479,172.42,172.35,1.60766713]
[1641311481028,27.66479,172.42,172.35,1.60766713]
[1641311481228,2.47479198,172.41,172.34,4.0]
[1641311482533,27.66479,172.42,172.35,1.6076316]
[1641311482730,27.66479,172.39,172.35,1.6076316]
[1641311483631,27.66479,172.39,172.34,4.0]
[1641311485331,27.66479,172.39,172.33,8.48]
[1641311486232,27.66479,172.39,172.35,1.60763324]
[1641311486735,27.66479,172.39,172.33,8.48]
[1641311487934,79.99689,172.39,172.33,8.48]
[1641311488736,82.99689,172.39,172.33,8.48]
[1641311489137,27.66479,172.39,172.34,4.0]
[1641311489338,2.48588989,172.38,172.34,12.16078974]
[1641311489837,27.66479,172.39,172.35,13.92737937]
[1641311491239,27.66479,172.42,172.35,13.92737937]
[1641311492239,2.48460804,172.41,172.37,4.0]
[1641311492740,27.66479,172.42,172.38,13.92737937]
[1641311494140,27.66479,172.42,172.38,1.61478974]
[1641311495043,27.66479,172.39,172.38,1.61478974]
[1641311496842,27.66479,172.39,172.35,1.61478974]
[1641311498046,27.66479,172.39,172.34,1.61478974]
[1641311501248,30.66479,172.39,172.34,1.61478974]
[1641311501446,30.66479,172.39,172.32,1.61478974]
[1641311501645,27.66479,172.39,172.32,1.61478974]
[1641311501846,30.66479,172.39,172.32,1.61478974]